Cogmind - Beta 13 @@@ ROGUE MODE // 2024.04.19 @ 16:51:35 Player: Wasdx Result: Destroyed by X-57 Shotgunner with High-powered Shotgun Performance ------------- Evolutions (2) 1000 Regions Visited (3) 600 Robots Destroyed (32) 160 Value Destroyed (911) 911 Prototype IDs (3) 60 Alien Tech Used (0) 0 Bonus (35) 35 TOTAL SCORE: 2766 Bonus ------- High Alert Combat Kills 35 Cogmind --------- Core Integrity 0/550 Matter 240/300 Energy 75/100 System Corruption 2% Temperature Cool (0) Movement Core (150) Ox2 Location -8/Materials Parts ------- > --- POWER (2) -------- (None) > --- PROPULSION (4) --- (None) > --- UTILITY (3) ------ Visual Processing Unit Field Recycling Unit > --- WEAPON (2) ------- (None) > --- INVENTORY (5) ---- High-capacity Matter Pod (200) Peak State ------------ > --- POWER ------------ Ion Engine Light Nuclear Core > --- PROPULSION ------- Advanced Treads Advanced Treads Aluminum Leg > --- UTILITY ---------- Visual Processing Unit Improved Propulsion Shielding Improved Propulsion Shielding > --- WEAPON ----------- Improved EM Shotgun Shock Rifle > --- INVENTORY -------- High-capacity Matter Pod Field Recycling Unit Light EM Pulse Cannon [Rating: 25] Favorites ----------- Power Light Nuclear Core Engine Ion Engine Power Core Light Nuclear Core Propulsion Wheel Treads Advanced Treads Leg Aluminum Leg Wheel Wheel Hover Unit Hover Unit Flight Unit Flight Unit Utility Weapon Shielding Device Field Recycling Unit Storage High-capacity Matter Pod Processor Visual Processing Unit Protection Weapon Shielding Weapon Grenade Launcher Energy Gun Improved EM Shotgun Energy Cannon Heavy Particle Cannon Ballistic Gun Assault Rifle Launcher Grenade Launcher Special Melee Weapon Datajack Build | -11 -10 -9 -8 ------- Run | Yrd Mat Mat Mat Slots Evolved 4 | . . 2 2 Power 1 | . . 1 . Propulsion 2 | . . . 2 Utility 1 | . . 1 . Weapon . | . . . . Parts Attached 58 | 11 15 22 10 Power 14 | 2 3 7 2 Engine 10 | 2 1 6 1 Core 4 | . 2 1 1 Reactor . | . . . . Propulsion 21 | 6 6 7 2 Treads 2 | . . . 2 Leg 4 | 2 . 2 . Wheel 9 | 4 3 2 . Hover 3 | . 3 . . Flight 3 | . . 3 . Utility 10 | . 4 3 3 Device 3 | . . 2 1 Storage 3 | . 3 . . Processor 1 | . . 1 . Hackware . | . . . . Protection 3 | . 1 . 2 Artifact . | . . . . Weapon 13 | 3 2 5 3 Energy Gun 5 | 2 1 1 1 Energy Cannon 2 | . . . 2 Ballistic Gun 4 | 1 . 3 . Ballistic Cannon . | . . . . Launcher 1 | . 1 . . Special Weapon . | . . . . Impact Weapon . | . . . . Slashing Weapon . | . . . . Piercing Weapon . | . . . . Special Melee Weapon 1 | . . 1 . Unidentified Prototypes 1 | . . 1 . Parts Lost 24 | . 1 13 10 Power 5 | . . 3 2 Propulsion 9 | . 1 5 3 Utility 3 | . . 1 2 Weapon 7 | . . 4 3 Highest Loss Streak 6 | . 1 6 5 To Critical Strikes . | . . . . Average Slot Usage (%) 77 | . 96 48 62 Engine 5 | . 7 2 3 Core 5 | . 7 3 1 Treads 2 | . . . 14 Leg 1 | . . . 8 Wheel 12 | . 17 10 . Hover 5 | . 9 . . Flight 1 | . . 5 . Storage 8 | . 11 7 . Processor 2 | . . 1 9 Protection 10 | . 13 1 12 Energy Gun 2 | . . 2 7 Energy Cannon 1 | . . . 5 Ballistic Gun 9 | . 13 5 . Launcher 8 | . 13 5 . Naked Turns . | . . . . Heaviest Build 21 | 9 21 16 20 Greatest Support 44 | 20 26 20 44 Greatest Overweight (x) 2 | . 2 2 2 Average Overweight (x) . | . . . . Largest Inventory Capacity 10 | 5 10 5 5 Average Capacity 5 | 5 5 5 5 Most Carried 5 | 5 5 5 5 Average Carried 3 | 1 4 4 3 Final Capacity 5 | 5 5 5 5 Final Carried 5 | 2 5 5 1 Class Distribution -------------------- 100% | Mutant Dominant Class ---------------- Mutant | -10/Materials Mutant | -9/Materials Mutant | -8/Materials Resources | -11 -10 -9 -8 ----------- Run | Yrd Mat Mat Mat Matter Collected 1302 | 309 621 367 5 Remotely . | . . . . Salvage Created 926 | 44 404 431 47 Parts 68 | 4 42 19 3 Haulers Intercepted . | . . . . Recyclers Shooed 1 | . . 1 . Parts Field Recycled . | . . . . Retrieved Matter . | . . . . Parts Self-Destructed . | . . . . Prevented . | . . . . Kills | -11 -10 -9 -8 ------- Run | Yrd Mat Mat Mat Combat Hostiles Destroyed 22 | 1 11 9 1 Guns 10 | 1 2 6 1 AOE 12 | . 9 3 . Classes Destroyed 11 | 1 5 4 1 Worker 1 | . 1 . . Builder 3 | . 2 1 . Recycler 2 | . 1 1 . Operator 1 | . . 1 . Watcher 3 | . 3 . . Swarmer 3 | . 3 . . Grunt 15 | 1 8 6 . Brawler 1 | . . 1 . Duelist 1 | . . 1 . Sentry 1 | . . 1 . Hunter 1 | . . . 1 Best Kill Streak 4 | 1 4 4 1 Combat Bots Only 3 | 1 3 3 1 Max Kills in Single Turn 3 | 1 3 1 1 Gunslinging . | . . . . Exploded 3 | . 3 1 . Melee . | . . . . Uniques/NPCs Destroyed . | . . . . Combat | -11 -10 -9 -8 -------- Run | Yrd Mat Mat Mat Hostile Shots Fired 210 | 4 26 78 102 Missed 57 | 1 9 18 29 Damage Taken 2815 | 35 300 992 1488 Core 948 | . 94 300 554 Absorbed by Shields . | . . . . Redirected to Shielding 239 | . 29 3 207 Regen/Repaired (Parts) 24 | . 24 . . Core Remaining (%) 62 | 100 62 25 . Volleys Fired 95 | 4 39 41 11 Largest 2 | 2 2 2 2 Hottest 120 | 70 50 53 120 Shots Fired 134 | 8 61 49 16 Gun 96 | 8 39 41 8 Cannon 8 | . . . 8 Launcher 30 | . 22 8 . Special . | . . . . Kinetic 69 | 4 39 26 . Thermal 7 | 4 . . 3 Explosive 30 | . 22 8 . Electromagnetic 28 | . . 15 13 Robot Hit Streak 8 | 3 7 8 3 Robot Miss Streak 3 | 1 3 2 2 Penetration Max . | . . . . Secondary Targets . | . . . . Shots Hit Robots 74 | 4 26 33 11 Core Hits 64 | 2 27 29 6 Critical Kills . | . . . . Critical Parts Destroyed . | . . . . Critical Strikes . | . . . . Melee Attacks 2 | . . 2 . Impact . | . . . . Slashing . | . . . . Piercing . | . . . . Sneak Attacks . | . . . . Combat Hostiles . | . . . . Follow-up Attacks . | . . . . Damage Inflicted 2273 | 50 1023 935 265 Guns 823 | 50 236 433 104 Cannons 93 | . . . 93 Explosions 1356 | . 787 501 68 Melee . | . . . . Ramming 1 | . . 1 . Kinetic 525 | 12 236 277 . Thermal 228 | 38 . 97 93 Explosive 1191 | . 787 404 . Electromagnetic 328 | . . 156 172 Impact . | . . . . Slashing . | . . . . Piercing . | . . . . Highest Corruption 2 | . . 1 2 Average Corruption 1 | . . 1 2 Corruption Purged . | . . . . Corruption Blocked . | . . . . Effects 2 | . . 1 1 Message Errors 2 | . . 1 1 Overload Shots . | . . . . Overflow Damage 3 | . 3 . . Projectiles . | . . . . Explosions 3 | . 3 . . Melee . | . . . . Knockbacks . | . . . . Impact . | . . . . Kinetic . | . . . . Secondary . | . . . . Self-Inflicted Damage 136 | . 83 53 . Shots 6 | . 3 3 . Rammed 1 | . . 1 . Targets Rammed 1 | . . 1 . Kicked . | . . . . Crushed . | . . . . Highest Temperature 126 | 18 8 21 126 Average Temperature 19 | 8 3 8 48 Received Heat Transfer 588 | 18 120 276 174 Siege Activations . | . . . . Robots Corrupted . | . . . . Combat Hostiles . | . . . . Parts Fried 1 | . . 1 . Impact Corruptions . | . . . . Robots Melted . | . . . . Combat Hostiles . | . . . . Parts Melted 1 | 1 . . . Heat Transferred 398 | 111 . 150 137 Parts Sabotaged . | . . . . Parts Stolen . | . . . . Parts Stripped . | . . . . Power Chain Reactions 3 | . . 2 1 Alert | -11 -10 -9 -8 ------- Run | Yrd Mat Mat Mat Peak Influence 562 | 20 404 562 291 Initial 237 | . 13 141 237 Average 237 | 2 235 323 265 Maximum Alert Level 2 | . 2 2 1 Low Security (%) 31 | 100 30 27 . Level 1 62 | . 67 50 100 Level 2 5 | . 1 22 . Level 3 . | . . . . Level 4 . | . . . . Level 5 . | . . . . High Security . | . . . . Max Security . | . . . . Squads Dispatched 10 | . 4 4 2 Investigation 3 | . 3 . . Extermination . | . . . . Reinforcement 7 | . 1 4 2 Assault . | . . . . Garrison . | . . . . Intercept . | . . . . Searches Triggered . | . . . . Construction Impeded 1 | . . 1 . Haulers Reinforced . | . . . . Active Scanning Responses . | . . . . Cargo Convoy Interrupts . | . . . . Stealth | -11 -10 -9 -8 --------- Run | Yrd Mat Mat Mat Distress Signals 4 | . 1 2 1 Communications Jammed . | . . . . Distress Signals . | . . . . Times Spotted 55 | 1 16 27 11 Peak Tracking Total 7 | 1 4 7 7 Tactical Retreats 8 | . 1 3 4 Traps | -11 -10 -9 -8 ------- Run | Yrd Mat Mat Mat Traps Triggered . | . . . . Indirectly . | . . . . Trap Hack Attempts . | . . . . Triggered . | . . . . Disarmed 6 | . 6 . . Reprogrammed . | . . . . Reused . | . . . . Traps Extracted . | . . . . Installed . | . . . . Triggered . | . . . . Machines | -11 -10 -9 -8 ---------- Run | Yrd Mat Mat Mat Machines Disabled 7 | . 4 2 1 Max in Single Turn 1 | . 1 1 1 Machines Repaired . | . . . . Machines Dismantled . | . . . . Machines Sabotaged . | . . . . Overloaded Fab Kills . | . . . . Hacking | -11 -10 -9 -8 --------- Run | Yrd Mat Mat Mat Machines Accessed 9 | . 8 1 . Terminals 6 | . 5 1 . Fabricators . | . . . . Repair Stations 1 | . 1 . . Recycling Units 2 | . 2 . . Scanalyzers . | . . . . Garrison Access . | . . . . Total Hacks 31 | . 28 3 . Successful 18 | . 16 2 . Failed 13 | . 12 1 . Catastrophic 3 | . 3 . . Database Lockouts . | . . . . Manual 4 | . 4 . . Terminals 20 | . 17 3 . Fabricators . | . . . . Repair Stations 4 | . 4 . . Recycling Units 7 | . 7 . . Scanalyzers . | . . . . Garrison Access . | . . . . Terminal Hacks 9 | . 7 2 . Record 4 | . 3 1 . Prototype ID Bank 1 | . 1 . . Emergency Access Points 1 | . . 1 . Alert Level 1 | . 1 . . Disarm Traps 1 | . 1 . . Investigation Status 1 | . 1 . . Fabricator Hacks . | . . . . Repair Station Hacks 4 | . 4 . . Scan Component 2 | . 2 . . Repair 1 | . 1 . . Refit 1 | . 1 . . Recycling Unit Hacks 5 | . 5 . . Recycle Component 1 | . 1 . . Process 1 | . 1 . . Report Inventory 1 | . 1 . . Retrieve Matter 2 | . 2 . . Scanalyzer . | . . . . Garrison Access Hacks . | . . . . Unauthorized Hacks . | . . . . Terminals . | . . . . Fabricators . | . . . . Repair Stations . | . . . . Recycling Units . | . . . . Scanalyzers . | . . . . Garrison Access . | . . . . Data Cores Recovered . | . . . . Used . | . . . . Hacking Detections 9 | . 8 1 . Full Trace Events 9 | . 8 1 . Feedback Events . | . . . . Feedback Blocked . | . . . . Robot Schematics Acquired . | . . . . Robots Built . | . . . . Authchips . | . . . . Time . | . . . . Total Robot Build Rating . | . . . . Part Schematics Acquired . | . . . . Parts Built . | . . . . Authchips . | . . . . Time . | . . . . Total Part Build Rating . | . . . . Parts Repaired 1 | . 1 . . Time 26 | . 26 . . Parts Recycled 1 | . 1 . . Recycled Matter 37 | . 37 . . Retrieved Matter 37 | . 37 . . Retrieved Components . | . . . . Parts Scanalyzed . | . . . . Part Schematics Acquired . | . . . . Parts Damaged . | . . . . Bothacking | -11 -10 -9 -8 ------------ Run | Yrd Mat Mat Mat Used RIF Installer . | . . . . Robots Hacked 1 | . . 1 . Non-combat . | . . . . Combat 1 | . . 1 . Robot Hacks Applied 1 | . . 1 . parse_system 1 | . . 1 . Relay Couplers Released . | . . . . Fabnet Peak Effective % . | . . . . Robots Rewired . | . . . . Allies Hacked . | . . . . Hacks Repelled . | . . . . Allies | -11 -10 -9 -8 -------- Run | Yrd Mat Mat Mat Total Allies . | . . . . Largest Group . | . . . . Highest-Rated Group . | . . . . Highest-Rated Ally . | . . . . Total Orders . | . . . . Ally Attacks . | . . . . Total Damage . | . . . . Kills . | . . . . Allies Corrupted . | . . . . Allies Melted . | . . . . Intel | -11 -10 -9 -8 ------- Run | Yrd Mat Mat Mat Robot Analysis Total . | . . . . Derelict Logs Recovered . | . . . . Drone Launches . | . . . . Drone Recoveries . | . . . . Exploration | -11 -10 -9 -8 ------------- Run | Yrd Mat Mat Mat Turns Passed 1493 | 150 747 341 255 Spaces Moved 1118 | 108 595 293 122 Core 118 | 85 . 20 13 Treads 93 | . . . 93 Legs 32 | 2 . 14 16 Wheels 532 | 21 394 117 . Hover 201 | . 201 . . Flight 142 | . . 142 . Fastest Speed 37 | 50 80 37 120 Average Speed 91 | 57 99 66 142 Slowest Speed 190 | 120 185 190 150 Overloaded Moves . | . . . . Propulsion Burnouts . | . . . . Robots Hopped 1 | . . 1 . Cave-ins Triggered . | . . . . Exploration Rate (%) 35 | 5 85 37 16 Regions Visited 3 Branch Regions . Pre-discovered Areas . | . . . . Known Exits Taken . | . . . . Unknown Exits Taken 3 | 1 1 1 . Scrap Searched . | . . . . Spaces Dug 3 | . 3 . . Terrain Destroyed 153 | . 84 61 8 Melee . | . . . . Projectile 1 | . . . 1 AOE 152 | . 84 61 7 Terrain Rammed . | . . . . Walls Destroyed . | . . . . Machines Disabled . | . . . . Actions | -11 -10 -9 -8 --------- Run | Yrd Mat Mat Mat Total 1465 | 190 694 395 186 Wait 124 | 53 24 8 39 Move 1113 | 107 594 290 122 Hop 1 | . . 1 . Pick Up 34 | 9 9 14 2 Fast Attach 12 | . 4 3 5 Attach 40 | 10 6 19 5 Detach 17 | 4 4 9 . Swap 6 | 1 5 . . Drop 20 | 2 9 7 2 Fire 95 | 4 39 41 11 Melee 2 | . . 2 . Ram 1 | . . 1 . Kick . | . . . . Crush . | . . . . Escape Stasis . | . . . . Rewire . | . . . . Trap . | . . . . Miscellaneous . | . . . . Route ------- -11/Scrapyard -10/Materials (discovered 3 exits: *Mat x2 / [*Min]) -9/Materials (discovered 2 exits: [*Mat] / [*Min]) -8/Materials History --------- Turn | Location | Event 2 | -11/Scrapyard | Met Revision 17 118 | -11/Scrapyard | Discovered new exit (range 8) 151 | -11/Scrapyard | Entered Materials 300 | -10/Materials | Build established: Mutant 347 | -10/Materials | Discovered new exit (range 14) 452 | -10/Materials | Discovered new exit (range 9) 763 | -10/Materials | Repaired Hover Unit 875 | -10/Materials | Discovered new exit (range 7) 898 | -10/Materials | Entered another Materials area 898 | -9/Materials | Evolved 2 slots: Power x1, Utility x1 1085 | -9/Materials | Discovered new exit (range 10) 1102 | -9/Materials | Lost 6 parts (1p2n3w) 1142 | -9/Materials | Core integrity fell below 50% 1171 | -9/Materials | Lost 3 parts (1p1n1w) 1210 | -9/Materials | Discovered new exit (range 3) 1239 | -9/Materials | Entered another Materials area 1239 | -8/Materials | Evolved 2 slots: Propulsion x2 1453 | -8/Materials | Lost 5 parts (2p1u2w) 1475 | -8/Materials | Core integrity fell below 50% 1485 | -8/Materials | Core integrity fell below 20% 1494 | -8/Materials | Destroyed by X-57 Shotgunner with High-powered Shotgun Last Messages --------------- wheel, '.', or KP5. Also make sure your per-turn energy generation is a net positive, and consider deactivating power-draining parts if not. Imp. Propulsion Shielding destroyed. Lgt. EM Pulse Cannon destroyed. G-47 Trooper IFF system glitched. W-25 Informer sends out distress signal. Slug penetrates Processing Tank. Adv. Treads destroyed. Aluminum Leg destroyed. Knocked back. 6I 3T7SMK:#NCE#GYD Nuclear Reactor explodes. X-57 Shotgunner destroyed. G-47 Trooper destroyed. [Achievement: First Step to Greatness] Map ----- +----------------------------------------------------+ | | | | | | | | | | | | | | | | | | | | | | | | | | | | | | | | | | | | | | | | | | | | | | | | | ???????????# #???????????????? | | ???????????# @ =%[ #???????????????? | | ??????????# x #??????????????? | | ??????????# #??????????????? | | ??????????# = #??????????????? | | ?????????? =%* #??????????????? | | ????????? #??????????????? | | ???????? """# Y ########?????????? | | ??????? """ u % #?????????? | | ?????? """### u# " "" #?????????? | | ?????? """???## # """" #?????????? | | ????? ????????# + """ #?????????? | | ???? ?????????# #% #?????????? | | ???# ?????????## u####+#######??????? | | ???#??+#+##+#### H " #??????? | | ?????# # #??????# | | ?????# ! + #???? | | ??????# ### ### # ### ? | | ??????????? ??#### #% + ??? | | ??????????# ??? # # ### * ? | | ??????????? ?? ""# # #???? ? | | ??????????? ?! "?# # #??????# | | ??????????? # T?# #########/#??????? | | ??????????? # ??# #???????# #??????? | | ??????????? #!???# #???????# #??????? | | ??????????+ # ???# #???????# #??????? | +----------------------------------------------------+ Best States ------------- Heat Dissipation 31 Energy Generation 19 Energy Capacity 310 Matter Stores 490 Matter Capacity 500 Sight Range 18 Terrain Scan Density 10 Propulsion Shielding 66 Weapon Shielding 33 Evasion (%) 62 Recoil Reduction 2 Item Schematics ----------------- None Robot Schematics ------------------ None Fabricated ------------ Nothing Alien Tech Used ----------------- None Achievements -------------- First Step to Greatness One Hack Too Far Part-time Mechanic Risk Taker Uninvited Guest Universal Adapter Challenges ------------ None Game ------ Seed PlasmaFissionTendrils Manual? 0 Play Time 01:17:50 Cumulative 1.2 hours Start 2024.04.18 @ 15:38:27 End 2024.04.19 @ 16:51:35 Sessions 7 Manual Loads 0 Difficulty Rogue Special Mode None Game No. 1 Rogue 1 Adventurer 0 Explorer 0 Win Type - Total 0 Types 0/0/0/0/0/0/0/0/0 Lore% 0 Gallery% 3 Achievement% 2 Wizard Run 0 Options --------- Layout 1 ASCII 0 Keyboard 0 Movement Mouse Keybinds 0 Fullscreen 1 Font 32/SmallcapsGlow Map View 50x35 Zoom Use 0% Tactical HUD 0 Map Filters NONE Filters NONE Steam 1 RUN: 734714bc-0cfb-4313-a2ac-1e01546b7d23